bitfinex/quotes_SOLUSD_20250222
["timestamp","ask_amount","ask_price","bid_price","bid_amount"]
[1740226267103,75.97432606,173.7,173.69,0.063]
[1740226268682,81.73132606,173.7,173.69,0.063]
[1740226269393,33.46493544,173.66,173.55,0.03]
[1740226269698,34.2745843,173.65,173.55,0.03]
[1740226270085,19.64964886,173.64,173.55,0.03]
[1740226270283,11.46493544,173.57,173.55,0.03]
[1740226271286,11.46493544,173.58,173.55,0.03]
[1740226271881,81.2,173.62,173.55,0.03]
[1740226271882,11.46493544,173.59,173.55,0.03]
[1740226272086,11.46493544,173.61,173.55,11.49493544]
[1740226272283,92.66493544,173.62,173.56,11.46493544]
[1740226272488,11.46493544,173.62,173.56,11.46493544]
[1740226272876,11.46493544,173.62,173.57,5.7613]
[1740226275801,11.46493544,173.64,173.57,17.22623544]
[1740226276106,4.2,173.65,173.6,1.5829]
[1740226277106,11.46493544,173.66,173.61,5.76]
[1740226277408,11.46493544,173.65,173.61,5.76]
[1740226277768,11.46493544,173.64,173.61,5.76]
[1740226282788,11.46493544,173.64,173.6,7.3432]
[1740226282991,11.46493544,173.63,173.6,1.5829]
[1740226283188,11.46493544,173.62,173.6,1.5829]
[1740226286499,11.46493544,173.63,173.6,7.3432]
[1740226287705,11.46493544,173.64,173.6,7.3432]
[1740226288399,11.46493544,173.63,173.6,7.3432]
[1740226289205,11.46493544,173.62,173.6,1.5829]
[1740226289500,11.46493544,173.62,173.58,12.0719]
[1740226290185,11.46493544,173.61,173.58,12.0719]
[1740226291206,11.46493544,173.62,173.58,12.0719]
[1740226293510,11.46493544,173.62,173.58,6.3112]
[1740226294520,17.22473544,173.62,173.58,6.3112]
[1740226296103,17.22473544,173.62,173.56,7.4047]
[1740226297684,11.46493544,173.62,173.56,7.4047]
[1740226298504,11.46493544,173.62,173.58,0.03]
[1740226302316,92.66493544,173.63,173.58,0.03]
[1740226303215,11.46493544,173.62,173.58,0.03]
[1740226303401,11.46493544,173.61,173.58,0.03]
[1740226305144,11.46493544,173.62,173.58,0.03]
[1740226306321,92.66493544,173.62,173.58,0.03]
[1740226306526,11.46493544,173.6,173.58,0.03]
[1740226306703,11.46493544,173.59,173.58,0.03]
[1740226308417,11.46493544,173.6,173.58,0.03]
[1740226308616,11.46493544,173.61,173.58,0.03]
[1740226309606,81.2,173.62,173.58,0.03]
[1740226309607,92.66493544,173.62,173.58,0.03]
[1740226312927,11.46493544,173.61,173.58,0.03]
[1740226314330,11.46493544,173.6,173.58,0.03]
[1740226314538,11.46493544,173.59,173.58,0.03]
[1740226323745,5.7601,173.61,173.58,0.03]
[1740226323746,11.46493544,173.6,173.58,0.03]
[1740226325349,11.46493544,173.61,173.58,0.03]
[1740226325541,92.66493544,173.62,173.58,0.03]
[1740226327446,11.46493544,173.61,173.58,0.03]
[1740226328845,81.2,173.62,173.58,0.03]
[1740226329048,11.46493544,173.61,173.58,0.03]
[1740226340082,11.46493544,173.6,173.58,0.03]
[1740226341384,11.46493544,173.59,173.58,0.03]
[1740226362909,11.46493544,173.6,173.58,0.03]
[1740226363191,92.66493544,173.62,173.58,0.03]
[1740226367800,11.46493544,173.61,173.58,0.03]
[1740226368602,11.46493544,173.63,173.58,0.03]
[1740226368774,11.52793544,173.64,173.58,11.49493544]
[1740226369595,11.52793544,173.64,173.59,5.7607]
[1740226371776,11.52793544,173.64,173.58,5.791]
[1740226372203,11.52793544,173.64,173.58,17.25593544]
[1740226376604,5.822,173.64,173.59,6.5402]
[1740226376807,0.063,173.64,173.63,11.46493544]
[1740226377309,0.063,173.64,173.63,19.56803544]
[1740226378577,0.063,173.64,173.63,25.32733544]
[1740226386021,0.063,173.64,173.6,92.96493544]
[1740226387010,0.063,173.64,173.61,5.7599]
[1740226389004,11.52793544,173.64,173.6,81.5]
[1740226389194,11.46493544,173.63,173.59,1.5113]
[1740226389395,11.46493544,173.63,173.59,7.2719]
[1740226389811,11.46493544,173.63,173.59,1.5113]
[1740226393212,11.46493544,173.63,173.59,7.3018]
[1740226393414,11.52793544,173.64,173.59,7.3018]
[1740226393620,11.46493544,173.62,173.59,0.03]
[1740226394406,5.822,173.64,173.59,5.7905]
[1740226394407,11.46493544,173.63,173.59,5.7905]
[1740226395498,11.46493544,173.63,173.59,0.03]
[1740226399630,11.46493544,173.62,173.59,0.03]
[1740226399803,11.46493544,173.61,173.59,0.03]
[1740226400200,92.66493544,173.6,173.59,0.03]
[1740226401325,30.1145843,173.6,173.59,0.03]
[1740226401720,35.8748843,173.6,173.59,0.03]
[1740226410259,34.2745843,173.6,173.59,0.03]
[1740226410630,11.46493544,173.6,173.59,0.03]
[1740226410831,11.46493544,173.61,173.59,0.03]
[1740226411137,4.16,173.62,173.59,0.03]
[1740226411138,15.62493544,173.62,173.59,0.03]
[1740226411645,11.46493544,173.61,173.59,0.03]
[1740226412231,11.46493544,173.6,173.59,0.03]
[1740226412530,30.1145843,173.6,173.59,0.03]
[1740226414355,35.8748843,173.6,173.59,0.03]
[1740226422960,1.0,173.48,173.41,0.03]
[1740226423155,11.46493544,173.42,173.41,0.03]
[1740226424030,11.46493544,173.43,173.41,0.03]
[1740226424748,11.46493544,173.45,173.41,0.03]
[1740226425470,11.46493544,173.44,173.41,0.03]
[1740226427241,3.41850029,173.43,173.41,0.03]
[1740226428740,11.46493544,173.44,173.41,0.03]
[1740226432463,3.41675609,173.43,173.41,0.03]
[1740226433661,92.66493544,173.46,173.41,0.03]
[1740226433847,81.2,173.46,173.41,0.03]
[1740226434868,98.42993544,173.46,173.41,0.03]
[1740226435064,92.66493544,173.46,173.41,0.03]
[1740226435284,3.41682344,173.45,173.41,0.03]
[1740226435969,14.88175888,173.45,173.41,0.03]
[1740226436174,20.64705888,173.45,173.41,0.03]
[1740226436658,3.41682344,173.45,173.41,0.03]
[1740226437179,81.2,173.46,173.41,0.03]
[1740226438892,92.66493544,173.46,173.41,0.03]
[1740226441451,3.41860071,173.45,173.41,0.03]
[1740226441672,14.88353615,173.45,173.41,0.03]
[1740226442954,11.46493544,173.45,173.41,0.03]
[1740226446182,98.43003544,173.46,173.41,0.03]
[1740226451992,3.42297491,173.45,173.41,0.03]
[1740226453081,11.46493544,173.44,173.41,0.03]
[1740226453468,9.18837491,173.45,173.41,0.03]
[1740226453469,11.46493544,173.43,173.41,0.03]
[1740226455506,86.965,173.46,173.41,0.03]
[1740226456273,98.42993544,173.46,173.41,0.03]
[1740226456473,86.965,173.46,173.41,0.03]
[1740226471019,21.48963544,173.47,173.41,0.03]
[1740226471226,11.46493544,173.46,173.41,0.03]
[1740226471420,21.48963544,173.47,173.41,0.03]
[1740226472000,11.46493544,173.46,173.41,0.03]
[1740226473597,11.46493544,173.45,173.41,0.03]
[1740226477836,17.23023544,173.45,173.41,0.03]
[1740226479922,4.26,173.47,173.41,0.03]
[1740226479923,17.22993544,173.46,173.41,0.03]
[1740226482616,10.0247,173.47,173.41,0.03]
[1740226482816,21.48963544,173.47,173.41,0.03]
[1740226483222,11.46493544,173.46,173.41,0.03]
[1740226484136,17.23003544,173.46,173.41,0.03]
[1740226486532,5.7647,173.47,173.41,11.49493544]
[1740226487631,17.22963544,173.47,173.41,0.03]
[1740226489346,92.66493544,173.48,173.41,11.49493544]
[1740226489508,98.42933544,173.48,173.41,17.26133544]
[1740226489835,11.46493544,173.47,173.41,5.7964]
[1740226491037,98.42933544,173.48,173.41,11.49493544]
[1740226491213,11.46493544,173.47,173.41,0.03]
[1740226491611,11.46493544,173.5,173.44,11.46493544]
[1740226491837,34.86599735,173.52,173.46,11.46493544]
[1740226492223,11.46493544,173.48,173.45,1.5247]
[1740226493115,17.22943544,173.48,173.45,1.5247]
[1740226494038,5.7645,173.48,173.45,1.5247]
[1740226494641,17.22943544,173.48,173.45,1.5247]
[1740226495313,11.46493544,173.47,173.44,81.5]
[1740226495514,11.46493544,173.46,173.44,81.5]
[1740226495728,17.22943544,173.48,173.42,11.46493544]
[1740226496530,11.46493544,173.47,173.41,13.10543544]
[1740226497131,17.22943544,173.48,173.42,11.46493544]
[1740226497324,17.22943544,173.48,173.41,18.87203544]
[1740226500640,11.46493544,173.47,173.41,18.87203544]
[1740226503255,11.46493544,173.48,173.42,11.46493544]
[1740226503423,11.46493544,173.49,173.42,11.46493544]
[1740226504125,11.46493544,173.49,173.43,11.46493544]
[1740226504320,81.2,173.5,173.45,11.46493544]
[1740226504527,0.063,173.52,173.49,11.46493544]
[1740226504924,0.063,173.52,173.5,11.46493544]
[1740226505151,0.063,173.52,173.49,11.46493544]
[1740226505447,0.063,173.52,173.48,11.46493544]
[1740226505651,11.52793544,173.52,173.47,1.5819]
[1740226505859,0.063,173.52,173.47,13.04683544]
[1740226506360,0.063,173.52,173.47,18.81113544]
[1740226508247,11.52793544,173.52,173.47,7.3462]
[1740226509826,11.46493544,173.51,173.45,99.43803544]
[1740226510155,11.46493544,173.51,173.46,5.7649]
[1740226511034,11.46493544,173.49,173.45,81.5]
[1740226511350,11.46493544,173.49,173.43,98.73063544]
[1740226511937,11.46493544,173.49,173.43,92.96493544]
[1740226512143,11.46493544,173.47,173.43,81.5]
[1740226512334,11.46493544,173.47,173.42,7.2741]
[1740226512653,11.46493544,173.47,173.42,5.7662]
[1740226514757,11.46493544,173.48,173.42,5.7662]
[1740226515258,11.46493544,173.49,173.43,11.46493544]
[1740226516057,98.42823544,173.51,173.45,11.46493544]
[1740226516237,0.063,173.52,173.46,11.46493544]
[1740226516556,11.52793544,173.52,173.46,11.46493544]
[1740226517259,11.52793544,173.52,173.47,5.7646]
[1740226517753,0.063,173.52,173.48,11.46493544]
[1740226517958,0.063,173.52,173.49,11.46493544]
[1740226518259,0.063,173.52,173.48,11.46493544]
[1740226519456,0.063,173.52,173.48,17.22923544]
[1740226523063,0.063,173.52,173.47,17.22953544]
[1740226523445,0.063,173.52,173.47,23.27473544]
[1740226523650,0.063,173.52,173.48,11.46493544]
[1740226524444,0.063,173.52,173.48,17.22913544]
[1740226524762,0.063,173.52,173.49,11.46493544]
[1740226526358,0.063,173.52,173.49,17.22883544]
[1740226527869,0.063,173.52,173.49,5.7639]
[1740226528575,0.063,173.52,173.5,11.46493544]
[1740226528977,0.063,173.52,173.51,11.46493544]
[1740226529471,0.063,173.52,173.51,17.22823544]
[1740226529979,0.063,173.52,173.51,5.7633]
[1740226530772,0.063,173.52,173.51,17.22823544]
[1740226535066,0.063,173.52,173.51,98.72823544]
[1740226536981,0.063,173.52,173.51,98.75823544]
[1740226539076,0.063,173.52,173.51,81.53]
[1740226540955,0.063,173.52,173.51,0.03]
[1740226556302,0.063,173.52,173.51,11.49493544]
[1740226556469,0.063,173.52,173.51,92.99493544]
[1740226557978,0.063,173.52,173.51,98.75823544]
[1740226566901,0.063,173.52,173.51,117.4078843]
[1740226568012,0.063,173.52,173.51,98.75823544]
[1740226568508,0.063,173.52,173.51,117.4078843]
[1740226568709,0.0001,173.52,173.51,119.4078843]
[1740226571117,0.0001,173.52,173.51,117.4078843]
[1740226574206,0.0001,173.52,173.51,118.4078843]
[1740226574413,0.0001,173.52,173.51,117.4078843]
[1740226574799,0.0001,173.52,173.51,118.4078843]
[1740226575300,0.0001,173.52,173.51,117.4078843]
[1740226590926,0.0001,173.52,173.51,165.26762606]
[1740226597326,0.0001,173.52,173.51,171.04262606]
[1740226597512,0.0001,173.52,173.51,165.26762606]
[1740226598401,0.0001,173.52,173.51,119.4078843]
[1740226598606,0.0001,173.52,173.51,117.4078843]
[1740226607168,0.0001,173.52,173.51,0.03]
[1740226607843,0.0001,173.52,173.51,35.9078843]
[1740226608042,0.0001,173.52,173.51,120.27199007]
[1740226608249,0.0001,173.52,173.51,121.0442843]
[1740226608456,0.0001,173.52,173.51,185.6442843]
[1740226608848,0.0001,173.52,173.51,231.50402606]
[1740226609776,0.0001,173.52,173.51,248.84402606]
[1740226610372,1.5551,173.63,173.56,18.64964886]
[1740226610561,1.5551,173.63,173.58,11.46493544]
[1740226611770,13.02003544,173.63,173.57,17.22623544]
[1740226613566,1.5551,173.63,173.57,98.72623544]
[1740226613864,1.5551,173.63,173.58,11.46493544]
[1740226615367,1.5551,173.63,173.59,5.7607]
[1740226618571,0.063,173.64,173.6,11.46493544]
[1740226618759,0.063,173.64,173.6,92.96493544]
[1740226618937,0.063,173.64,173.6,81.5]
[1740226620369,0.063,173.64,173.61,5.76]
[1740226621240,0.063,173.63,173.61,5.76]
[1740226625173,0.063,173.63,173.62,11.46493544]
[1740226625884,0.063,173.63,173.62,17.22463544]
[1740226626681,0.063,173.63,173.62,5.7597]
[1740226627178,0.063,173.63,173.62,87.2597]
[1740226632099,0.063,173.63,173.62,98.72463544]
[1740226632394,0.063,173.63,173.62,117.3742843]
[1740226639812,0.063,173.63,173.62,87.2597]
[1740226649910,0.063,173.63,173.62,118.3742843]
[1740226652592,0.063,173.63,173.62,87.2597]
[1740226653803,0.063,173.63,173.62,98.72463544]
[1740226656802,0.063,173.63,173.62,119.3742843]
[1740226657002,0.0001,173.64,173.63,31.1145843]
[1740226658298,0.0001,173.64,173.63,178.2145843]
[1740226658800,0.0001,173.64,173.63,183.9738843]
[1740226662714,0.0001,173.64,173.63,186.78657543]
[1740226667511,0.063,173.7,173.69,19.64964886]
[1740226667711,0.063,173.7,173.69,112.6145843]
[1740226668019,0.063,173.7,173.69,111.6145843]
[1740226669420,0.063,173.7,173.69,117.3718843]
[1740226669612,0.063,173.7,173.69,105.90694886]
[1740226669914,0.063,173.7,173.69,117.3718843]
[1740226670698,0.063,173.7,173.67,91.418]
[1740226670900,11.52793544,173.7,173.67,91.418]
[1740226671116,0.063,173.7,173.69,20.0]
[1740226680607,0.063,173.7,173.69,25.7573]
[1740226684841,0.063,173.7,173.69,37.22223544]
[1740226685343,0.063,173.7,173.69,55.8718843]
[1740226686729,0.063,173.7,173.69,137.3718843]
[1740226686934,0.063,173.7,173.69,125.90694886]
[1740226687807,0.063,173.7,173.69,107.2573]
[1740226688011,0.063,173.7,173.69,101.5]
[1740226689336,0.063,173.7,173.69,107.2573]
[1740226689633,0.063,173.7,173.69,101.5]
[1740226691238,0.063,173.7,173.69,107.2573]
[1740226692547,0.063,173.7,173.69,25.7573]
[1740226696111,0.063,173.7,173.67,81.5]
[1740226696323,0.063,173.7,173.68,5.7577]
[1740226705625,11.52793544,173.7,173.67,81.5]
[1740226706246,0.063,173.7,173.67,87.2579]
[1740226706435,11.52793544,173.7,173.67,81.5]
[1740226706630,0.063,173.7,173.67,87.2579]
[1740226708325,0.063,173.7,173.67,98.72283544]
[1740226708943,0.063,173.7,173.67,87.2579]
[1740226711350,0.063,173.7,173.69,25.7573]
[1740226711549,0.063,173.7,173.69,55.8718843]
[1740226714953,0.063,173.7,173.69,44.40694886]
[1740226715252,0.063,173.7,173.69,56.8718843]
[1740226715837,0.063,173.7,173.69,55.8718843]
[1740226716439,0.063,173.7,173.69,138.3718843]
[1740226717663,0.063,173.7,173.69,137.3718843]
[1740226717844,0.063,173.7,173.69,138.3718843]
[1740226721050,11.46493544,173.78,173.73,20.0]
[1740226721255,11.46493544,173.78,173.73,101.5]
[1740226722151,11.46493544,173.78,173.74,5.7557]
[1740226725255,11.46493544,173.78,173.74,87.2557]
[1740226728042,11.46493544,173.79,173.74,87.2557]
[1740226729473,0.063,173.81,173.77,1.0]
[1740226729763,0.063,173.81,173.78,18.64964886]
[1740226730772,11.52793544,173.81,173.77,81.5]
[1740226730979,11.46493544,173.8,173.77,81.5]
[1740226733951,11.46493544,173.8,173.77,87.2546]
[1740226740067,11.52793544,173.81,173.77,87.2546]
[1740226741965,11.46493544,173.8,173.77,81.5]
[1740226742171,11.52793544,173.81,173.77,87.2546]
[1740226744474,11.46493544,173.79,173.74,81.5]
[1740226744779,11.46493544,173.75,173.74,81.5]
[1740226744978,11.46493544,173.75,173.74,20.0]
[1740226746779,11.46493544,173.76,173.74,20.0]
[1740226747155,11.46493544,173.75,173.71,5.7567]
[1740226747355,11.46493544,173.73,173.7,87.287]
[1740226747778,11.46493544,173.72,173.7,87.287]
[1740226747979,11.46493544,173.73,173.7,87.287]
[1740226748686,11.46493544,173.73,173.7,87.2868]
[1740226750274,11.46493544,173.72,173.7,87.2868]
[1740226751372,11.46493544,173.73,173.7,87.2868]
[1740226751676,11.46493544,173.74,173.7,87.2868]
[1740226752769,11.46493544,173.75,173.7,87.2868]
[1740226753504,11.46493544,173.77,173.71,30.1145843]
[1740226753691,11.46493544,173.78,173.72,11.46493544]
[1740226753867,11.46493544,173.78,173.72,92.96493544]
[1740226754407,11.46493544,173.8,173.74,11.46493544]
[1740226754909,11.46493544,173.8,173.75,5.7553]
[1740226755204,11.52793544,173.81,173.75,17.22023544]
[1740226755369,0.063,173.81,173.75,17.22023544]
[1740226757096,11.52793544,173.81,173.75,17.22023544]
[1740226757467,0.063,173.81,173.76,11.46493544]
[1740226757667,0.063,173.81,173.76,92.96493544]
[1740226758400,0.063,173.81,173.77,5.7547]
[1740226760988,0.063,173.81,173.77,87.2547]
[1740226762908,11.52793544,173.81,173.77,87.2547]
[1740226763406,11.46493544,173.8,173.77,87.2547]
[1740226764284,11.46493544,173.79,173.77,81.5]
[1740226764486,11.46493544,173.78,173.77,81.5]
[1740226766017,11.46493544,173.78,173.71,81.5]
[1740226766218,11.46493544,173.74,173.71,81.5]
[1740226766813,4.16,173.8,173.72,11.46493544]
[1740226766814,11.46493544,173.78,173.72,11.46493544]
[1740226766987,11.46493544,173.78,173.73,5.756]
[1740226767482,11.46493544,173.75,173.72,87.2563]
[1740226767683,11.46493544,173.74,173.72,81.5]
[1740226767877,11.46493544,173.74,173.73,20.0]
[1740226768180,11.46493544,173.74,173.7,87.2869]
[1740226768412,11.46493544,173.71,173.7,87.2869]
[1740226768595,11.46493544,173.71,173.7,0.03]
[1740226769911,11.46493544,173.72,173.7,0.03]
[1740226771310,11.46493544,173.71,173.7,0.03]
[1740226772821,11.46493544,173.72,173.7,0.03]
[1740226774616,5.755,173.76,173.7,0.03]
[1740226774817,11.46493544,173.72,173.7,0.03]
[1740226775706,11.46493544,173.71,173.7,0.03]
[1740226777916,11.46493544,173.72,173.7,0.03]
[1740226779123,11.46493544,173.71,173.7,0.03]
[1740226784032,17.22163544,173.71,173.7,0.03]
[1740226785222,63.0813772,173.71,173.7,0.03]
[1740226788333,81.73102606,173.71,173.64,0.03]
[1740226788533,11.46493544,173.65,173.64,0.03]
[1740226791727,17.22363544,173.65,173.64,0.03]
[1740226792918,11.46493544,173.65,173.64,0.03]
[1740226800518,17.22363544,173.65,173.64,0.03]
[1740226806026,35.8732843,173.65,173.63,0.03]
[1740226806230,15.62493544,173.64,173.63,0.03]
[1740226806560,34.2745843,173.64,173.63,0.03]
[1740226806741,18.64964886,173.63,173.54,1.6062]
[1740226806933,11.46493544,173.56,173.54,1.6062]
[1740226807937,11.46493544,173.56,173.52,87.2927]
[1740226808950,11.46493544,173.55,173.52,87.2927]
[1740226809449,11.46493544,173.55,173.52,81.53]
[1740226809666,11.46493544,173.54,173.52,0.03]
[1740226810135,11.46493544,173.53,173.52,0.03]
[1740226812863,81.2,173.56,173.52,0.03]
[1740226813166,92.66493544,173.56,173.52,0.03]
[1740226813665,11.46493544,173.55,173.52,0.03]
[1740226813961,11.46493544,173.54,173.52,0.03]
[1740226816753,11.46493544,173.53,173.52,0.03]
[1740226822770,17.22753544,173.53,173.52,0.03]
[1740226823135,63.0872772,173.53,173.52,0.03]
[1740226825746,11.46493544,173.53,173.52,0.03]
[1740226837997,5.7607,173.59,173.52,0.03]
[1740226838199,11.46493544,173.53,173.52,0.03]
[1740226839678,17.22753544,173.53,173.52,0.03]
[1740226840558,63.0872772,173.53,173.52,0.03]
[1740226843362,81.73692606,173.53,173.52,0.03]
[1740226844070,81.73692606,173.53,173.46,0.03]
[1740226844071,18.64964886,173.52,173.46,0.03]
[1740226844270,11.46493544,173.47,173.46,0.03]
[1740226845993,17.22953544,173.47,173.46,0.03]
[1740226847290,11.46493544,173.47,173.46,0.03]
[1740226850075,92.66493544,173.47,173.46,0.03]
[1740226856103,11.46493544,173.47,173.46,0.03]
[1740226856606,17.22953544,173.47,173.46,0.03]
[1740226860122,11.46493544,173.47,173.46,0.03]
[1740226862386,17.22953544,173.47,173.46,0.03]
[1740226863298,35.8791843,173.47,173.46,0.03]
[1740226864719,20.0,173.44,173.43,0.03]
[1740226864914,50.1145843,173.44,173.43,0.03]
[1740226865629,95.97432606,173.44,173.43,0.03]
[1740226865810,101.73992606,173.44,173.43,0.03]
[1740226867207,101.73992606,173.44,173.41,0.03]
[1740226867419,11.46493544,173.42,173.41,0.03]
[1740226867615,15.62493544,173.42,173.41,0.03]
[1740226869434,11.46493544,173.42,173.41,0.03]
[1740226869653,92.66493544,173.43,173.41,0.03]
[1740226870343,11.46493544,173.42,173.41,0.03]
[1740226870835,81.2,173.43,173.41,0.03]
[1740226871139,92.66493544,173.46,173.41,0.03]
[1740226871317,11.46493544,173.47,173.41,17.26153544]
[1740226872043,11.46493544,173.48,173.42,11.46493544]
[1740226872231,92.66493544,173.49,173.43,11.46493544]
[1740226873553,92.66493544,173.49,173.44,5.7656]
[1740226874327,11.46493544,173.48,173.44,5.7656]
[1740226875768,11.46493544,173.48,173.43,5.766]
[1740226876040,81.2,173.49,173.43,5.766]
[1740226876041,11.46493544,173.47,173.43,5.766]
[1740226876205,11.46493544,173.46,173.43,5.766]
[1740226877130,11.46493544,173.46,173.42,5.7663]
[1740226877302,11.46493544,173.45,173.41,81.53]
[1740226877903,11.46493544,173.44,173.41,81.53]
[1740226879944,11.46493544,173.44,173.41,0.03]
[1740226881553,0.063,173.51,173.41,0.03]
[1740226881554,11.46493544,173.43,173.41,0.03]
[1740226883451,11.46493544,173.42,173.41,0.03]
[1740226884732,11.46493544,173.43,173.41,0.03]
[1740226886233,11.46493544,173.42,173.41,0.03]
[1740226886934,11.46493544,173.43,173.41,0.03]
[1740226888857,11.46493544,173.44,173.41,0.03]
[1740226889145,81.2,173.45,173.41,0.03]
[1740226890551,11.46493544,173.44,173.41,0.03]
[1740226891152,11.46493544,173.42,173.41,0.03]
[1740226893850,21.43123544,173.42,173.41,0.03]
[1740226894234,22.43123544,173.42,173.41,0.03]
[1740226894549,41.0808843,173.42,173.41,0.03]
[1740226896639,19.64964886,173.41,173.34,0.03]
[1740226896845,11.46493544,173.35,173.34,0.03]
[1740226900862,17.23353544,173.35,173.34,0.03]
[1740226901039,35.8831843,173.35,173.34,0.03]
[1740226901643,17.23353544,173.35,173.34,0.03]
[1740226903365,35.8831843,173.35,173.34,0.03]
[1740226907339,82.74292606,173.35,173.34,0.03]
[1740226907543,19.64964886,173.34,173.28,0.03]
[1740226907763,11.46493544,173.29,173.28,0.03]
[1740226908066,15.66493544,173.29,173.28,0.03]
[1740226909463,21.43553544,173.29,173.28,0.03]
[1740226910559,15.66493544,173.29,173.28,0.03]
[1740226912372,1.0,173.28,173.24,0.03]
[1740226912569,11.46493544,173.25,173.24,0.03]
[1740226914974,17.23693544,173.25,173.24,0.03]
[1740226916055,35.8865843,173.25,173.24,0.03]
[1740226916283,82.74632606,173.25,173.24,0.03]
[1740226916773,25.42194886,173.24,173.23,0.03]
[1740226916951,36.8868843,173.24,173.23,0.03]
[1740226917676,51.3176843,173.24,173.14,1.6662]
[1740226917855,11.46493544,173.18,173.14,1.6662]
[1740226918058,11.46493544,173.15,173.1,6.0631]
[1740226918274,11.46493544,173.12,173.09,1.6662]
[1740226918559,11.46493544,173.16,173.09,18.90823544]
[1740226918755,11.46493544,173.15,173.09,1.6662]
[1740226918960,11.46493544,173.13,173.09,1.6662]
[1740226920063,11.46493544,173.14,173.09,1.6662]
[1740226920386,11.46493544,173.13,173.09,1.6662]
[1740226920581,11.46493544,173.14,173.09,7.4434]
[1740226920841,18.0071,173.21,173.09,7.4434]
[1740226920842,4.34,173.16,173.1,11.46493544]
[1740226920957,4.34,173.16,173.11,5.7766]
[1740226922791,22.38494527,173.16,173.11,5.7766]
[1740226924178,4.34,173.16,173.11,5.7766]
[1740226924387,22.38494527,173.16,173.11,5.7766]
[1740226925276,18.04494527,173.15,173.1,5.777]
[1740226925811,22.38494527,173.16,173.11,0.03]
[1740226926481,18.04494527,173.15,173.11,0.03]
[1740226927901,22.38494527,173.16,173.11,0.03]
[1740226928394,81.2,173.17,173.12,18.04494527]
[1740226929405,81.2,173.17,173.13,5.776]
[1740226931797,99.24494527,173.19,173.13,5.776]
[1740226933791,18.04494527,173.18,173.13,5.776]
[1740226933990,18.04494527,173.18,173.13,20.0]
[1740226934191,99.24494527,173.19,173.13,20.0]
[1740226934397,99.24494527,173.19,173.13,26.0121]
[1740226934602,18.04494527,173.18,173.13,26.0121]
[1740226935285,18.04494527,173.16,173.13,26.0121]
[1740226936206,18.04494527,173.16,173.13,31.7878]
[1740226936412,18.04494527,173.14,173.11,0.03]
[1740226938809,18.04494527,173.13,173.11,0.03]
[1740226939190,18.04494527,173.12,173.11,0.03]
[1740226940004,18.04494527,173.13,173.11,0.03]
[1740226940318,18.04494527,173.12,173.11,0.03]
[1740226944700,11.55752059,173.12,173.11,0.03]
[1740226946221,92.75752059,173.16,173.11,0.03]
[1740226946421,81.2,173.16,173.11,0.03]
[1740226946808,92.75752059,173.16,173.11,0.03]
[1740226948519,92.75752059,173.16,173.11,5.8066]
[1740226952729,11.55752059,173.14,173.11,0.03]
[1740226953106,11.55752059,173.13,173.11,0.03]
[1740226953327,11.55752059,173.14,173.11,0.03]
[1740226957931,81.2,173.15,173.11,13.22002059]
[1740226958099,81.2,173.15,173.11,1.6625]
[1740226959721,92.75752059,173.15,173.11,1.6625]
[1740226960231,92.75752059,173.15,173.11,0.03]
[1740226965031,11.55752059,173.14,173.11,0.03]
[1740226965850,11.55752059,173.13,173.11,0.03]
[1740226966624,11.55752059,173.14,173.11,0.03]
[1740226966810,81.2,173.15,173.11,0.03]
[1740226967727,92.75752059,173.15,173.11,0.03]
[1740226973220,81.2,173.15,173.11,0.03]
[1740226973537,92.75752059,173.15,173.11,0.03]